Cogmind - Beta 17 @@@ ROGUE MODE // 2026.08.03 @ 21:20:28 Player: dispear Result: Destroyed by G-34 Mercenary with Small Laser Performance ------------- Evolutions (1) 500 Regions Visited (2) 400 Robots Destroyed (35) 175 Value Destroyed (941) 941 Prototype IDs (0) 0 Alien Tech Used (0) 0 Bonus (19) 19 TOTAL SCORE: 2035 Bonus ------- High Alert Combat Kills 19 Cogmind --------- Core Integrity 0/400 Matter 85/300 Energy 90/100 System Corruption 2% Temperature Cool (15) Movement Core (200) Ox3 Location -9/Materials Parts ------- > --- POWER (1) -------- (None) > --- PROPULSION (3) --- (None) > --- UTILITY (3) ------ Medium Storage Unit > --- WEAPON (2) ------- (None) > --- INVENTORY (10) --- Light Ion Engine Heat Sink Small Storage Unit Weight Redist. System Light Armor Plating Shock Bomb Launcher Peak State ------------ > --- POWER ------------ Light Ion Engine > --- PROPULSION ------- Aluminum Leg Aluminum Leg Aluminum Leg > --- UTILITY ---------- Medium Storage Unit Improved Sensor Array Light Armor Plating > --- WEAPON ----------- EM Pulse Cannon Shock Bomb Launcher > --- INVENTORY -------- Ion Engine Ion Engine Heat Sink Small Storage Unit Weight Redist. System Light Armor Plating Grenade Launcher [Rating: 15] Favorites ----------- Power Ion Engine Engine Ion Engine Power Core Light Nuclear Core Propulsion Aluminum Leg Leg Aluminum Leg Utility Light Armor Plating Device Seismic Detector Storage Medium Storage Unit Protection Light Armor Plating Weapon Grenade Launcher Energy Gun Particle Gun Energy Cannon EM Pulse Cannon Ballistic Gun Assault Rifle Launcher Grenade Launcher Build | -11 -10 -9 ------- Run | Yrd Mat Mat Slots Evolved 2 | . . 2 Power . | . . . Propulsion 1 | . . 1 Utility 1 | . . 1 Weapon . | . . . Parts Attached 32 | 8 10 14 Power 5 | 1 2 2 Engine 4 | 1 1 2 Core 1 | . 1 . Reactor . | . . . Propulsion 9 | 2 3 4 Treads . | . . . Leg 9 | 2 3 4 Wheel . | . . . Hover . | . . . Flight . | . . . Utility 8 | 2 2 4 Device 3 | 1 . 2 Storage 2 | 1 1 . Processor . | . . . Hackware . | . . . Protection 3 | . 1 2 Artifact . | . . . Weapon 10 | 3 3 4 Energy Gun 5 | 2 2 1 Energy Cannon 1 | . . 1 Ballistic Gun 1 | 1 . . Ballistic Cannon . | . . . Launcher 3 | . 1 2 Special Weapon . | . . . Impact Weapon . | . . . Slashing Weapon . | . . . Piercing Weapon . | . . . Special Melee Weapon . | . . . Unidentified Prototypes . | . . . Parts Lost 12 | . 1 11 Power 2 | . 1 1 Propulsion 4 | . . 4 Utility 4 | . . 4 Weapon 2 | . . 2 Highest Loss Streak 8 | . 1 8 To Critical Strikes . | . . . Average Backups 5 | 1 4 6 Power 1 | . 1 1 Propulsion . | . . . Utility 3 | . 2 3 Weapon . | . . 1 Tool/Special . | . . . Unused Backups 2 | . . 2 Power . | . . . Propulsion . | . . . Utility 2 | . . 2 Weapon . | . . . Tool/Special . | . . . Average Slot Usage (%) 94 | . 98 88 Engine 10 | . 10 9 Core 1 | . 2 . Leg 28 | . 28 28 Device 10 | . 14 7 Storage 9 | . 7 11 Protection 8 | . 6 11 Energy Gun 10 | . 15 4 Energy Cannon 2 | . . 5 Ballistic Gun 5 | . 10 . Launcher 6 | . 2 10 Peak Build Rating 15 | 7 10 15 Average Rating 9 | 4 7 11 On Entrance 5 | . 7 9 Avg Prop Armor Cover (%) . | . . . Naked Turns . | . . . Heaviest Build 30 | 15 17 30 Greatest Support 30 | 20 20 30 Greatest Overweight (x) 5 | 1 . 5 Average Overweight (x) . | . . . Largest Inventory Capacity 10 | 8 10 10 Average Capacity 8 | 6 6 9 Most Carried 9 | 3 8 9 Average Carried 5 | 1 4 6 Final Capacity 10 | 8 8 10 Final Carried 8 | 3 8 6 Class Distribution -------------------- 68% | Mutant 31% | Scavenger-Mutant Dominant Class ---------------- Mutant | -10/Materials Mutant | -9/Materials Resources | -11 -10 -9 ----------- Run | Yrd Mat Mat Matter Collected 709 | 181 273 255 Remotely . | . . . Salvage Created 976 | 20 469 487 Parts 63 | 5 27 31 Haulers Intercepted . | . . . Recyclers Shooed 2 | . 2 . Parts Field Recycled . | . . . Retrieved Matter . | . . . Parts Self-Destructed . | . . . Prevented . | . . . Parts Restored . | . . . Kills | -11 -10 -9 ------- Run | Yrd Mat Mat Combat Hostiles Destroyed 25 | . 10 15 Guns 13 | . 10 3 AOE 12 | . . 12 Classes Destroyed 10 | 1 5 4 Worker 2 | . 2 . Builder 1 | . . 1 Tunneler 2 | 1 . 1 Recycler 1 | . 1 . Mechanic 1 | . . 1 Watcher 3 | . 1 2 Swarmer 6 | . 3 3 Grunt 13 | . 7 6 Duelist 1 | . . 1 Sentry 5 | . . 5 Best Kill Streak 8 | 1 8 8 Combat Bots Only 7 | . 5 7 Max Kills in Single Turn 2 | 1 2 2 Gunslinging 1 | . 1 . Exploded 2 | . . 2 Melee . | . . . Uniques/NPCs Destroyed . | . . . Combat | -11 -10 -9 -------- Run | Yrd Mat Mat Hostile Shots Fired 181 | . 45 136 Missed 55 | . 10 45 Hits 126 | . 35 91 Melee 4 | . . 4 Projectile 122 | . 35 87 Critical Strikes 7 | . 1 6 Damage Taken 1853 | . 379 1474 Core 485 | . 85 400 Absorbed by Shields . | . . . Core Remaining (%) 83 | 100 66 . Volleys Fired 58 | 1 30 27 Largest 2 | 2 2 2 Hottest 130 | 60 130 99 Shots Fired 102 | 2 56 44 Gun 71 | 2 56 13 Cannon 8 | . . 8 Launcher 23 | . . 23 Special . | . . . Kinetic 23 | 1 22 . Thermal 40 | . 27 13 Explosive 22 | . . 22 Electromagnetic 17 | 1 7 9 Robot Hit Streak 18 | 1 18 8 Robot Miss Streak 5 | . 5 3 Penetration Max . | . . . Secondary Targets 1 | . 1 . Max Gunslinging Chain 1 | . 1 . Shots Hit Robots 64 | 1 37 26 Core Hits 53 | 1 19 33 Critical Kills . | . . . Critical Parts Destroyed . | . . . Critical Strikes . | . . . Melee Attacks . | . . . Impact . | . . . Slashing . | . . . Piercing . | . . . Sneak Attacks . | . . . Combat Hostiles . | . . . Follow-up Attacks . | . . . Damage Inflicted 1787 | 12 570 1205 Guns 713 | 12 567 134 Cannons 133 | . . 133 Explosions 938 | . . 938 Melee . | . . . Ramming 3 | . 3 . Kinetic 170 | . 170 . Thermal 473 | . 339 134 Explosive 922 | . . 922 Electromagnetic 219 | 12 58 149 Impact . | . . . Slashing . | . . . Piercing . | . . . Highest Corruption 2 | . . 2 Average Corruption 1 | . . 1 Corruption Purged . | . . . Corruption Blocked . | . . . Effects 2 | . . 2 Message Errors 1 | . . 1 Data Loss (minor) 1 | . . 1 Overload Shots . | . . . Overflow Damage 19 | . . 19 Projectiles . | . . . Explosions 19 | . . 19 Melee . | . . . Knockbacks . | . . . Impact . | . . . Kinetic . | . . . Secondary . | . . . Self-Inflicted Damage 229 | . . 229 Shots 10 | . . 10 Rammed . | . . . Targets Rammed 1 | . 1 . Kicked 1 | . 1 . Crushed . | . . . Highest Temperature 258 | . 258 149 Average Temperature 58 | . 65 51 Received Heat Transfer 663 | . 156 507 Siege Activations . | . . . Martial Activations . | . . . Shielding Activations . | . . . Robots Disrupted . | . . . Combat Hostiles . | . . . Robots Corrupted . | . . . Combat Hostiles . | . . . Parts Fried 1 | . . 1 Impact Corruptions . | . . . Robots Melted . | . . . Combat Hostiles . | . . . Parts Melted . | . . . Heat Transferred 1147 | . 814 333 Parts Sabotaged . | . . . Parts Stolen . | . . . Parts Stripped . | . . . Power Chain Reactions . | . . . Alert | -11 -10 -9 ------- Run | Yrd Mat Mat Maximum Alert Level 2 | . . 2 Low Security (%) 67 | 100 100 27 Level 1 24 | . . 54 Level 2 8 | . . 18 Level 3 . | . . . Level 4 . | . . . Level 5 . | . . . High Security . | . . . Max Security . | . . . Peak Influence 436 | 5 172 436 Initial 65 | . 3 65 Average 142 | . 58 253 Influence Increases 886 | 5 290 591 Destroy 0b10 Robot/C 500 | . 200 300 Destroy 0b10 Robot/NC 50 | 5 20 25 Destroy Leader 136 | . 52 84 Successful Hack 29 | . . 29 Disable Machine 60 | . . 60 Destroy Structure 96 | . 3 93 Lose Combat Pursuer 15 | . 15 . Influence Decreases 578 | . 139 439 Entered New Map 93 | . 2 91 Time Decay 365 | . 127 238 Lost Part 120 | . 10 110 Squads Dispatched 3 | . 2 1 Investigation 1 | . 1 . Extermination . | . . . Reinforcement 2 | . 1 1 Assault . | . . . Garrison . | . . . Intercept . | . . . Searches Triggered . | . . . Construction Impeded . | . . . Haulers Reinforced . | . . . Active Scanning Responses . | . . . Cargo Convoy Interrupts . | . . . Stealth | -11 -10 -9 --------- Run | Yrd Mat Mat Distress Signals 1 | . 1 . Communications Jammed . | . . . Distress Signals . | . . . Times Spotted 43 | . 17 26 Peak Tracking Total 6 | . 5 6 Tactical Retreats 1 | . 1 . Traps | -11 -10 -9 ------- Run | Yrd Mat Mat Traps Triggered 6 | . . 6 Indirectly . | . . . Trap Hack Attempts . | . . . Triggered . | . . . Disarmed . | . . . Reprogrammed . | . . . Reused . | . . . Traps Extracted . | . . . Installed . | . . . Triggered . | . . . Machines | -11 -10 -9 ---------- Run | Yrd Mat Mat Machines Disabled 4 | . . 4 Max in Single Turn 1 | . . 1 Machines Repaired . | . . . Machines Dismantled . | . . . Machines Sabotaged . | . . . Overloaded Fab Kills . | . . . Hacking | -11 -10 -9 --------- Run | Yrd Mat Mat Machines Accessed 7 | . 2 5 Terminals 5 | . 1 4 Fabricators . | . . . Repair Stations . | . . . Recycling Units 1 | . 1 . Scanalyzers 1 | . . 1 Garrison Access . | . . . Total Hacks 18 | . 4 14 Successful 5 | . 1 4 Failed 13 | . 3 10 Catastrophic 2 | . 1 1 Database Lockouts . | . . . Manual 11 | . 1 10 Terminals 12 | . 1 11 Fabricators . | . . . Repair Stations . | . . . Recycling Units 3 | . 3 . Scanalyzers 3 | . . 3 Garrison Access . | . . . Terminal Hacks 3 | . . 3 Record 1 | . . 1 Level Access Points 1 | . . 1 Branch Access Points 1 | . . 1 Fabricator Hacks . | . . . Repair Station Hacks . | . . . Recycling Unit Hacks 1 | . 1 . Report Inventory 1 | . 1 . Scanalyzer 1 | . . 1 Retrieve Study 1 | . . 1 Garrison Access Hacks . | . . . Unauthorized Hacks . | . . . Terminals . | . . . Fabricators . | . . . Repair Stations . | . . . Recycling Units . | . . . Scanalyzers . | . . . Garrison Access . | . . . Data Cores Recovered . | . . . Used . | . . . Hacking Detections 7 | . 2 5 Full Trace Events 1 | . 1 . Feedback Events . | . . . Feedback Blocked . | . . . Robot Schematics Acquired . | . . . Robots Built . | . . . Authchips . | . . . Time . | . . . Total Robot Build Rating . | . . . Part Schematics Acquired . | . . . Parts Built . | . . . Authchips . | . . . Time . | . . . Total Part Build Rating . | . . . Part Studies Acquired 1 | . . 1 Parts Repaired . | . . . Time . | . . . Parts Recycled . | . . . Recycled Matter . | . . . Retrieved Matter . | . . . Retrieved Components . | . . . Parts Scanalyzed . | . . . Part Schematics Acquired . | . . . Parts Damaged . | . . . Bothacking | -11 -10 -9 ------------ Run | Yrd Mat Mat Used RIF Installer . | . . . Robots Hacked . | . . . Non-combat . | . . . Combat . | . . . Robot Hacks Applied . | . . . Relay Couplers Released . | . . . Fabnet Peak Effective % . | . . . Robots Rewired . | . . . Allies Hacked . | . . . Hacks Repelled . | . . . Allies | -11 -10 -9 -------- Run | Yrd Mat Mat Total Allies . | . . . Largest Group . | . . . Highest-Rated Group . | . . . Highest-Rated Ally . | . . . Total Orders . | . . . Ally Attacks . | . . . Total Damage . | . . . Kills . | . . . Allies Corrupted . | . . . Allies Melted . | . . . Intel | -11 -10 -9 ------- Run | Yrd Mat Mat Active Infowar (turns) 873 | 3 549 321 Sensors 214 | . . 214 Terrain 65 | . . 65 Seismic 594 | 3 549 42 Robot Analysis Total . | . . . Derelict Logs Recovered . | . . . Drone Launches . | . . . Drone Recoveries . | . . . Exploration | -11 -10 -9 ------------- Run | Yrd Mat Mat Turns Passed 1125 | 73 549 503 Spaces Moved 551 | 48 172 331 Core 10 | 5 . 5 Treads . | . . . Legs 541 | 43 172 326 Wheels . | . . . Hover . | . . . Flight . | . . . Fastest Speed 50 | 50 120 105 Average Speed 115 | 114 120 113 Slowest Speed 300 | 120 120 300 Overloaded Moves . | . . . Propulsion Burnouts . | . . . Robots Hopped . | . . . Potential Cave-ins . | . . . Cave-ins Triggered . | . . . Exploration Rate (%) 29 | 4 37 47 Regions Visited 2 Branch Regions . Pre-discovered Areas . | . . . Known Exits Taken . | . . . Unknown Exits Taken 2 | 1 1 . Scrap Searched . | . . . Spaces Dug . | . . . Terrain Destroyed 126 | . . 126 Melee . | . . . Projectile . | . . . AOE 126 | . . 126 Terrain Rammed . | . . . Walls Destroyed . | . . . Machines Disabled . | . . . Actions | -11 -10 -9 --------- Run | Yrd Mat Mat Total 919 | 60 456 403 Wait 241 | 1 231 9 Move 549 | 47 171 331 Hop . | . . . Pick Up 10 | 2 6 2 Fast Attach 20 | 8 . 12 Attach 6 | . 2 4 Detach 2 | 1 1 . Swap 23 | . 10 13 Drop 9 | . 4 5 Fire 58 | 1 30 27 Melee . | . . . Ram . | . . . Kick 1 | . 1 . Crush . | . . . Escape Stasis . | . . . Rewire . | . . . Trap . | . . . Miscellaneous . | . . . Route ------- -11/Scrapyard -10/Materials -9/Materials (discovered 5 exits: *Mat x3 / *Min x2) History --------- Turn | Location | Event 3 | -11/Scrapyard | Discovered new exit (range 16) 74 | -11/Scrapyard | Entered Materials 312 | -10/Materials | Build established: Mutant 609 | -10/Materials | Discovered new exit (range 11) 623 | -10/Materials | Entered another Materials area 623 | -9/Materials | Evolved 2 slots: Propulsion x1, Utility x1 788 | -9/Materials | Destroyed 7 combat bots 799 | -9/Materials | Identified exit to Materials 879 | -9/Materials | Identified exit to Mines 1103 | -9/Materials | Core integrity fell below 50% 1119 | -9/Materials | Core integrity fell below 20% 1126 | -9/Materials | Destroyed by G-34 Mercenary with Small Laser Last Messages --------------- 01087_ Acquired EM Pulse Cannon. 01090_ Imp. Sensor Array destroyed. 01095_ Acquired Aluminum Leg+. 01097_ EM Pulse Cannon destroyed. 01098_ Acquired Grenade Launcher. 01101_ Acquired Lgt. Armor Plating. 01103_ Lgt. Armor Plating destroyed. 01104_ Acquired Aluminum Leg+. 01106_ Critical hit (Burn: +37). 01106_ Aluminum Leg+ destroyed. 01107_ Triggered Blade Trap. 01107_ Massive razor-sharp blades shoot up from within the floor. 01107_ Grenade Launcher severed. 01107_ Aluminum Leg+ severed. 01111_ Acquired Aluminum Leg+. 01112_ Aluminum Leg+ destroyed. 01113_ Acquired Aluminum Leg+. 01116_ Acquired Grenade Launcher. 01120_ Grenade Launcher destroyed. 01122_ Aluminum Leg+ destroyed. Map ----- +----------------------------------------------------+ | | | | | | | | | | | | | | | | | | | | | | | | | | | | | | | | | | | ????????????????????????#######??????????????? | | ????????????????????????#!= #?????????????? | | ????????????????????????#! #?????????????? | | ????????????????????????# """ #?????????????? | | ????????????????????????# """ #?????????????? | | ?????????????????????????! """ #?????????????? | | ?????????????????????????? #######???????? | | ?????????????????###########;### #???????? | | ?????????????????# @ g #???????? | | ?????????????????# < g ^ T #???????? | | ?????????????????# ^ Y #???????? | | ?????????????????####+########## #?????? | | ?????????????????????????######## ##?????? | | ?????????????????????????# % # #??????? | | ?????????????????????????# = # #?????## | | ?????????????????????????# + ####### | | ?????????????????????????# """ # | | ?????????????????????????# """ # | | ?????????????????????????# """ ?# | | ?????????????????????????######?#######"### | | ???????????????????????????????????# ! ## | | ???????????????????????????????????# ## | | ????????????????????????########??## """ ## | | ?????????????????????#??# #?#?# """ ## | | ????????????????????????# #???# """ ## | | ????????????????????????# #???# + | | ????????????????????????# #???######### | | ??????????????########### #???????????# | | ??????????????# # #??#######??# | | ???????????#??# #+#+####### #??# | | ??????????????# # #??# | | ??????????????# + T #??# | | ??????????????# # #??# | +----------------------------------------------------+ Best States ------------- Heat Dissipation 28 Energy Generation 14 Energy Capacity 250 Matter Stores 300 Matter Capacity 300 Sight Range 16 Robot Scan Range 15 Terrain Scan Range 16 Terrain Scan Density 10 Armor Coverage 300 Evasion (%) 55 Item Schematics ----------------- None Robot Schematics ------------------ None Fabricated ------------ Nothing Repaired ---------- Nothing Studied --------- Aluminum Leg | -9/Materials | Hacked Alien Tech Used ----------------- None Achievements -------------- Let's See Who's Tougher Challenges ------------ None Game ------ Seed AmuletFlightRecalibrator Manual? 0 Play Time 00:28:40 Cumulative 9.2 hours Start 2026.08.03 @ 20:46:53 End 2026.08.03 @ 21:20:28 Sessions 1 Manual Loads 0 Difficulty Rogue Special Mode None Game No. 10 Rogue 8 Adventurer 2 Explorer 0 Win Type - Total 0 Types 0/0/0/0/0/0/0/0/0/0 Lore% 7 Gallery% 13 Achievement% 14 Wizard Run 0 Options --------- Layout 0 ASCII 0 Keyboard 1 Movement Numpad Keybinds 0 Fullscreen 1 Font 18/SmallcapsGlow Map View 76x50 Zoom Use 0% Tactical HUD 1 Map Filters NONE Filters NONE Steam 1 RUN: 830bfaa4-4915-4f9c-a6ad-2cdb4cb26e6a